bitfinex-derivatives/quotes_SOLF0:USTF0_20240830
["timestamp","ask_amount","ask_price","bid_price","bid_amount"]
[1725050280021,3.6742,136.09,136.07,3.6746]
[1725050281819,3.6746,136.08,136.06,3.6749]
[1725050282616,3.6746,136.08,136.01,116.54079954]
[1725050282617,11.33632093,136.1,136.04,11.28]
[1725050282822,0.05604636,136.08,136.04,11.28]
[1725050283017,3.6749,136.07,136.04,14.9553]
[1725050283216,0.05604636,136.08,136.04,14.9553]
[1725050283421,3.6753,136.05,136.03,3.6757]
[1725050283723,0.05604636,136.08,136.03,3.6757]
[1725050283724,0.05604636,136.08,136.03,14.9557]
[1725050284120,3.6751,136.06,136.03,14.9557]
[1725050288328,3.6751,136.06,136.04,3.6755]
[1725050292430,3.6753,136.05,136.03,3.6756]
[1725050292626,3.6753,136.05,136.03,14.9556]
[1725050293435,3.6755,136.04,136.02,3.6759]
[1725050293636,3.72392687,136.04,136.01,82.70079954]
[1725050294132,3.72392687,136.04,136.02,3.6759]
[1725050296234,0.04842687,136.04,136.03,14.9558]
[1725050307151,0.04842687,136.04,136.03,3.6758]
[1725050307445,3.72392687,136.04,136.03,3.6758]
[1725050307852,3.72392687,136.04,136.02,3.6759]
[1725050308251,3.72392687,136.04,136.01,11.28]
[1725050308252,3.6758,136.03,136.01,3.6762]
[1725050308590,0.04842687,136.04,135.99,11.28]
[1725050309041,0.04842687,136.04,135.97,1.3221]
[1725050309354,0.04842687,136.04,135.98,11.28]
[1725050310449,3.6763,136.02,135.99,3.6767]
[1725050311741,3.6764,136.01,135.99,3.6767]
[1725050313051,3.6766,136.0,135.98,14.957]
[1725050313253,3.73153744,136.0,135.98,14.957]
[1725050313446,0.05493744,136.0,135.98,14.957]
[1725050314045,0.05493744,136.0,135.95,3.6779]
[1725050314564,0.05493744,136.0,135.94,3.6781]
[1725050314751,3.6776,135.97,135.94,3.6781]
[1725050315059,3.73143926,135.97,135.94,3.6781]
[1725050317159,3.73143926,135.97,135.95,3.6779]
[1725050321656,3.6777,135.96,135.94,14.9581]
[1725050321853,0.05383926,135.97,135.94,14.9581]
[1725050322762,3.73133926,135.97,135.95,3.6779]
[1725050324360,3.73133926,135.97,135.94,3.6781]
[1725050324752,3.6778,135.96,135.94,3.6781]
[1725050332765,3.678,135.95,135.93,3.6784]
[1725050337773,3.678,135.95,135.92,3.6786]
[1725050337959,3.73348962,135.95,135.92,3.6786]
[1725050338165,0.05548962,135.95,135.87,8.6327]
[1725050338361,0.05548962,135.95,135.89,11.28]
[1725050338872,3.6785,135.93,135.91,3.6789]
[1725050340674,3.6785,135.93,135.9,3.6792]
[1725050340869,3.73411065,135.93,135.9,3.6792]
[1725050341267,3.6788,135.92,135.9,3.6792]
[1725050342469,3.6788,135.92,135.89,3.6794]
[1725050344377,3.6791,135.91,135.89,3.6794]
[1725050346587,11.28,135.91,135.84,59.59577891]
[1725050346776,0.05043202,135.89,135.84,70.87577891]
[1725050346972,0.05043202,135.89,135.8,1.3236]
[1725050346973,11.33043202,135.89,135.8,1.3236]
[1725050347285,0.05630481,135.86,135.81,11.28]
[1725050347476,0.05635337,135.85,135.81,11.28]
[1725050347679,0.05635337,135.85,135.81,15.01123855]
[1725050347884,3.73715337,135.85,135.82,3.6813]
[1725050350088,3.681,135.84,135.82,3.6813]
[1725050350285,0.05635337,135.85,135.82,3.6813]
[1725050350792,3.73705337,135.85,135.82,3.6813]
[1725050351390,3.73705337,135.85,135.83,3.6812]
[1725050352891,0.05635337,135.85,135.83,3.6812]
[1725050353587,3.6817,135.82,135.78,3.6823]
[1725050353788,0.05608497,135.81,135.76,11.28]
[1725050354193,0.05608497,135.81,135.78,3.6824]
[1725050355299,0.05608497,135.81,135.78,3.6825]
[1725050355589,0.05608497,135.81,135.78,14.9625]
[1725050356098,0.05608497,135.81,135.78,3.6825]
[1725050356300,0.05608497,135.81,135.77,3.6826]
[1725050356594,3.682,135.8,135.77,3.6826]
[1725050356790,3.682,135.8,135.75,11.28]
[1725050356991,3.682,135.8,135.76,3.6831]
[1725050357294,3.6823,135.79,135.76,3.6831]
[1725050359692,0.05608497,135.81,135.75,11.28]
[1725050359898,0.05608497,135.81,135.76,11.28]
[1725050360494,3.73798497,135.81,135.77,3.6826]
[1725050361696,3.73798497,135.81,135.76,11.28]
[1725050361697,3.73798497,135.81,135.78,3.6825]
[1725050367931,0.05608497,135.81,135.74,6.2103398]
[1725050368106,0.05608497,135.81,135.8,11.28]
[1725050368406,0.05608497,135.81,135.8,14.962]
[1725050369902,3.72331442,135.86,135.83,3.6812]
[1725050370400,7.40391442,135.86,135.83,3.6812]
[1725050370592,3.72331442,135.86,135.82,3.6814]
[1725050370798,0.04832592,135.85,135.83,0.05197836]
[1725050371096,3.6809,135.84,135.83,0.05197836]
[1725050371697,4.9907,135.84,135.83,0.05197836]
[1725050372606,3.6815,135.82,135.74,3.6127398]
[1725050372807,3.6815,135.82,135.79,3.6822]
[1725050373401,3.6818,135.81,135.79,3.6822]
[1725050373707,3.73701602,135.81,135.79,3.6822]
[1725050374005,3.73701602,135.81,135.78,3.6825]
[1725050375113,0.05521602,135.81,135.79,3.6822]
[1725050378013,0.05521602,135.81,135.8,3.682]
[1725050378605,0.05521602,135.81,135.79,3.6821]
[1725050379008,3.73701602,135.81,135.79,3.6821]
[1725050379305,0.05521602,135.81,135.79,3.6821]
[1725050381910,0.05521602,135.81,135.8,3.682]
[1725050383905,0.05521602,135.81,135.77,11.28]
[1725050383906,0.05521602,135.81,135.79,3.6821]
[1725050384106,3.73701602,135.81,135.79,3.6821]
[1725050384812,0.05521602,135.81,135.79,3.6821]
[1725050387509,0.05521602,135.81,135.8,3.682]
[1725050406041,3.73711602,135.81,135.79,3.6822]
[1725050406239,11.33521602,135.81,135.74,11.28]
[1725050406446,0.05521602,135.81,135.75,11.28]
[1725050407146,0.05521602,135.81,135.73,11.01048878]
[1725050407147,0.05521602,135.81,135.78,11.28]
[1725050407347,0.05521602,135.81,135.73,11.01048878]
[1725050407348,0.05521602,135.81,135.77,11.28]
[1725050407663,3.73701602,135.81,135.77,11.28]
[1725050408349,3.73701602,135.81,135.76,11.28]
[1725050408940,3.73701602,135.81,135.78,3.6823]
[1725050409141,3.73701602,135.81,135.76,11.28]
[1725050409745,0.05521602,135.81,135.79,3.6822]
[1725050410844,3.73701602,135.81,135.79,3.6822]
[1725050412349,0.05521602,135.81,135.8,3.682]
[1725050414150,0.05521602,135.81,135.79,3.6822]
[1725050414642,3.73721602,135.81,135.77,11.28]
[1725050414842,0.05521602,135.81,135.76,11.28]
[1725050416046,3.6821,135.8,135.78,3.6824]
[1725050416252,0.05521602,135.81,135.77,11.28]
[1725050416446,0.05507584,135.8,135.79,3.6821]
[1725050416643,0.05507584,135.8,135.79,14.9621]
[1725050416849,0.05507584,135.8,135.79,3.6821]
[1725050417242,0.05507584,135.8,135.79,14.9621]
[1725050418342,0.05507584,135.8,135.78,3.6825]
[1725050418548,3.73717584,135.8,135.78,3.6825]
[1725050420544,0.05507584,135.8,135.79,3.6823]
[1725050420953,0.05507584,135.8,135.79,14.9623]
[1725050425154,1.32,135.85,135.83,3.681]
[1725050425458,83.52365291,135.87,135.82,11.28]
[1725050425459,87.15549426,135.87,135.82,11.28]
[1725050425652,83.52365291,135.87,135.83,11.28]
[1725050426157,0.05505558,135.86,135.84,0.04870484]
[1725050426762,0.05505558,135.86,135.85,3.6807]
[1725050429048,4.1005,135.9,135.85,3.6807]
[1725050429049,3.679,135.92,135.85,11.28]
[1725050429250,3.679,135.92,135.86,11.28]
[1725050429460,14.91261226,135.92,135.85,11.28]
[1725050429653,11.28,135.92,135.85,11.28]
[1725050430047,0.05631587,135.9,135.87,3.73419973]
[1725050430962,3.73561587,135.9,135.87,3.73419973]
[1725050433863,3.6797,135.89,135.87,0.05419973]
[1725050434465,2.7194,135.89,135.87,0.05419973]
[1725050435265,6.3991,135.89,135.87,0.05419973]
[1725050436567,6.3991,135.89,135.83,11.28]
[1725050436568,11.28,135.88,135.83,11.28]
[1725050437070,2.7194,135.89,135.83,11.28]
[1725050437372,3.68,135.88,135.85,3.6805]
[1725050437565,3.72929327,135.88,135.85,3.73290438]
[1725050444195,3.6801,135.87,135.85,3.73290438]
[1725050445273,3.72919327,135.88,135.86,3.6804]
[1725050446765,3.72919327,135.88,135.86,14.9604]
[1725050447172,0.04929327,135.88,135.87,14.9601]
[1725050453985,0.04929327,135.88,135.86,14.9603]
[1725050455082,0.04929327,135.88,135.87,3.6801]
[1725050456883,0.04929327,135.88,135.86,3.6803]
[1725050457182,3.72919327,135.88,135.86,3.6803]
[1725050458277,3.6801,135.87,135.85,0.05240438]
[1725050460182,3.6801,135.87,135.85,3.73300438]
[1725050460486,3.6801,135.87,135.85,0.05240438]
[1725050464685,3.6804,135.86,135.85,0.05240438]
[1725050468796,0.04929327,135.88,135.86,3.6803]
[1725050468985,0.04929327,135.88,135.86,14.9603]
[1725050469187,0.04929327,135.88,135.86,11.28]
[1725050470195,0.04929327,135.88,135.85,0.05240438]
[1725050470397,3.72919327,135.88,135.86,3.6803]
[1725050471286,0.04929327,135.88,135.87,3.6801]
[1725050471692,0.04929327,135.88,135.86,11.28]
[1725050472095,0.04929327,135.88,135.86,14.9603]
[1725050474848,0.04929327,135.88,135.69,7.3696]
[1725050475106,0.04929327,135.88,135.81,11.28]
[1725050475107,11.28,135.86,135.81,11.28]
[1725050475305,11.28,135.86,135.81,14.9616]
[1725050475496,11.28,135.86,135.81,3.6816]
[1725050475695,11.28,135.86,135.75,1.3267]
[1725050476000,0.05304551,135.83,135.8,11.28]
[1725050477300,0.05304551,135.83,135.78,11.28]
[1725050478300,3.73424551,135.83,135.79,3.6822]
[1725050480709,3.6815,135.82,135.78,3.6823]
[1725050482412,3.6815,135.82,135.79,3.6823]
[1725050484405,3.73434551,135.83,135.77,11.28]
[1725050484707,3.73434551,135.83,135.79,11.28]
[1725050485208,3.73434551,135.83,135.79,14.962]
[1725050485598,3.6815,135.82,135.79,3.682]
[1725050485799,0.05304551,135.83,135.78,3.6824]
[1725050486010,11.33304551,135.83,135.78,3.6824]
[1725050486332,3.682,135.81,135.78,3.6824]
[1725050487707,3.682,135.81,135.78,14.9624]
[1725050488015,0.05304551,135.83,135.78,14.9624]
[1725050488016,3.6816,135.82,135.79,3.6823]
[1725050488896,0.05304551,135.83,135.78,11.28]
[1725050489101,3.73434551,135.83,135.8,3.6818]
[1725050489604,3.6815,135.82,135.8,3.6818]
[1725050490209,3.6815,135.82,135.79,3.6822]
[1725050498116,3.6818,135.81,135.79,3.6822]
[1725050500617,3.6816,135.82,135.79,3.6822]
[1725050503926,0.05304551,135.83,135.78,11.28]
[1725050504130,0.05304551,135.83,135.8,11.28]
[1725050504732,0.05304551,135.83,135.82,3.6815]
[1725050505426,0.05304551,135.83,135.81,3.6816]
[1725050506721,3.73424551,135.83,135.81,3.6816]
[1725050506927,3.73424551,135.83,135.8,3.6818]
[1725050507931,3.6815,135.82,135.8,3.6818]
[1725050510232,3.73444551,135.83,135.8,3.6818]
[1725050510432,3.73444551,135.83,135.81,3.6817]
[1725050511437,11.33304551,135.83,135.72,1.2161]
[1725050511633,0.05152353,135.79,135.73,14.92278878]
[1725050512044,3.683,135.77,135.73,14.92278878]
[1725050512237,3.683,135.77,135.73,3.64278878]
[1725050512538,3.6832,135.76,135.73,3.6838]
[1725050512739,3.73568488,135.76,135.73,3.6838]
[1725050514553,3.6834,135.75,135.72,3.6841]
[1725050516944,3.6838,135.74,135.68,1.2155]
[1725050517142,0.04859721,135.72,135.7,11.28]
[1725050518143,0.04859721,135.72,135.71,3.6844]
[1725050518346,0.04859721,135.72,135.71,14.9644]
[1725050519539,3.68014137,135.79,135.75,3.6833]
[1725050519741,11.28,135.81,135.74,11.28]
[1725050520142,3.6827,135.78,135.75,3.6833]
[1725050520438,3.6827,135.78,135.75,3.73318977]
[1725050520646,3.734957,135.78,135.75,3.73318977]
[1725050523145,0.052257,135.78,135.77,3.6828]
[1725050524249,0.052257,135.78,135.77,14.9628]
[1725050529752,0.052257,135.78,135.75,0.04988977]
[1725050529953,0.052257,135.78,135.6,11.0622]
[1725050529954,11.28,135.76,135.67,11.28]
[1725050530255,3.6843,135.72,135.68,3.6851]
[1725050530551,11.28,135.76,135.69,11.28]
[1725050530946,3.6841,135.73,135.69,14.9648]
[1725050536254,3.6844,135.72,135.68,3.6851]
[1725050536451,0.05067137,135.71,135.65,14.0085]
[1725050536651,3.6849,135.7,135.65,14.0085]
[1725050537557,3.685,135.69,135.66,3.6857]
[1725050539661,0.05067137,135.71,135.67,3.6855]
[1725050539662,3.6848,135.7,135.67,3.6855]
[1725050539860,0.05067137,135.71,135.67,3.6855]
[1725050540361,3.73527137,135.71,135.67,3.6855]
[1725050541465,3.6848,135.7,135.67,3.6855]
[1725050543470,3.685,135.69,135.66,3.6857]
[1725050544861,3.6854,135.68,135.65,3.686]
[1725050545067,3.73625372,135.68,135.65,3.686]
[1725050546460,3.73625372,135.68,135.65,14.966]
[1725050547270,0.05085372,135.68,135.65,14.966]
[1725050547967,0.05085372,135.68,135.66,3.6858]
[1725050552772,3.73615372,135.68,135.66,3.6858]
[1725050554123,0.05085372,135.68,135.67,3.6855]
[1725050564283,0.05085372,135.68,135.67,14.9655]
[1725050565284,11.28,135.76,135.67,11.28]
[1725050565486,11.28,135.76,135.7,11.28]
[1725050565788,3.6835,135.75,135.72,3.6841]
[1725050565988,4.1405,135.77,135.7,14.99905739]
[1725050566182,91.50685964,135.78,135.72,0.0559569]
[1725050566487,0.05362641,135.75,135.72,0.0559569]
[1725050566682,0.05362641,135.75,135.73,3.6839]
[1725050568191,0.05362641,135.75,135.74,3.6836]
[1725050569784,0.05362641,135.75,135.73,3.6838]
[1725050570896,0.05362641,135.75,135.74,3.6836]
[1725050579895,0.05362641,135.75,135.73,3.6837]
[1725050580400,0.05362641,135.75,135.74,3.6836]
[1725050587600,3.73702641,135.75,135.73,3.6838]
[1725050587793,3.73702641,135.75,135.72,0.0559569]
[1725050587989,0.05362641,135.75,135.72,0.0559569]
[1725050588394,3.73712641,135.75,135.72,3.7401569]
[1725050591807,3.6837,135.74,135.72,3.7401569]
[1725050592006,3.6837,135.74,135.72,0.0559569]
[1725050593605,3.6839,135.73,135.72,0.0559569]
[1725050599622,0.05362641,135.75,135.72,3.7400569]
[1725050600525,3.73712641,135.75,135.72,3.7400569]
[1725050619733,0.05362641,135.75,135.73,3.6839]
[1725050620027,0.05362641,135.75,135.72,0.0559569]
[1725050620333,0.05362641,135.75,135.74,3.6836]
[1725050628231,0.05362641,135.75,135.73,3.6838]
[1725050628442,0.05362641,135.75,135.72,0.0559569]
[1725050628829,3.73702641,135.75,135.72,3.7399569]
[1725050633439,3.6837,135.74,135.72,0.0559569]
[1725050634345,3.73712641,135.75,135.72,3.7401569]
[1725050637548,0.05362641,135.75,135.73,3.6839]
[1725050638350,3.73712641,135.75,135.73,3.6839]
[1725050638653,0.05362641,135.75,135.73,3.6839]
[1725050638851,0.05362641,135.75,135.74,3.6836]
[1725050642154,3.73702641,135.75,135.73,3.6838]
[1725050643444,3.73702641,135.75,135.72,11.3359569]
[1725050643445,3.73702641,135.75,135.72,15.0200569]
[1725050644042,3.6837,135.74,135.72,15.0200569]
[1725050644654,3.6837,135.74,135.72,0.0559569]
[1725050644655,7.4103333,135.73,135.72,0.0559569]
[1725050644953,7.29320314,135.73,135.72,0.0559569]
[1725050650859,18.57320314,135.73,135.72,0.0559569]
[1725050658657,3.686,135.66,135.6,1.3356]
[1725050658857,3.686,135.66,135.63,11.28]
[1725050659573,3.73842594,135.66,135.64,3.6862]
[1725050659971,0.05242594,135.66,135.64,3.6862]
[1725050660170,0.05242594,135.66,135.65,3.6861]
[1725050661372,3.6862,135.65,135.6,4.0237]
[1725050661576,3.6862,135.65,135.61,11.28]
[1725050661770,3.6862,135.65,135.62,3.74051698]
[1725050662064,3.6862,135.65,135.61,11.28]
[1725050662405,3.6862,135.65,135.62,3.72282784]
[1725050663360,3.6862,135.65,135.63,3.6865]
[1725050663564,0.05242594,135.66,135.62,15.00282784]
[1725050663766,0.05242594,135.66,135.62,11.28]
[1725050663970,0.05242594,135.66,135.64,3.6861]
[1725050666075,3.73822594,135.66,135.64,3.6861]
[1725050666479,0.05242594,135.66,135.64,3.6861]
[1725050667474,3.73832594,135.66,135.63,3.6865]
[1725050669175,3.6861,135.65,135.63,3.6865]
[1725050671979,3.6861,135.65,135.62,7.40252283]
[1725050673274,3.73842594,135.66,135.63,11.28]
[1725050673783,3.73842594,135.66,135.63,14.9665]
[1725050673980,3.6861,135.65,135.63,14.9665]
[1725050674285,0.05242594,135.66,135.63,14.9665]
[1725050674881,3.73842594,135.66,135.63,14.9665]
[1725050675083,3.73842594,135.66,135.64,3.6863]
[1725050678187,3.6861,135.65,135.63,3.6865]
[1725050681883,3.6861,135.65,135.62,3.6867]
[1725050684302,3.6864,135.64,135.62,3.6867]
[1725050691603,3.6864,135.64,135.61,14.9671]
[1725050691797,3.6864,135.64,135.61,3.6871]
[1725050692200,3.6866,135.63,135.61,3.6871]
[1725050694210,3.6865,135.64,135.61,3.6871]
[1725050696601,3.6862,135.65,135.62,3.6868]
[1725050699511,3.6862,135.65,135.63,3.6866]
[1725050700705,0.05242594,135.66,135.63,3.6866]
[1725050701313,0.05242594,135.66,135.62,11.28]
[1725050701913,0.05242594,135.66,135.65,3.6861]
[1725050708313,0.05242594,135.66,135.65,14.9661]
[1725050708523,1.3964,135.72,135.66,3.75249432]
[1725050708813,5.12990579,135.73,135.68,11.28]
[1725050709022,3.6844,135.72,135.69,3.6849]
[1725050709212,2.8234,135.77,135.69,11.28]
[1725050709555,3.73779611,135.74,135.72,0.05083992]
[1725050710823,3.6839,135.73,135.72,0.05083992]
[1725050711013,7.3335907,135.73,135.72,0.05083992]
[1725050713518,3.6839,135.73,135.72,0.05083992]
[1725050714017,7.45803603,135.73,135.72,0.05083992]
[1725050716815,3.73789611,135.74,135.72,0.05083992]
[1725050717311,0.05409611,135.74,135.72,0.05083992]
[1725050718318,3.6839,135.73,135.72,0.05083992]
[1725050719423,3.73799611,135.74,135.72,0.05083992]
[1725050720328,3.73799611,135.74,135.72,3.73503992]
[1725050720519,0.05409611,135.74,135.72,0.05083992]
[1725050720927,0.05409611,135.74,135.73,3.6839]
[1725050725819,0.05409611,135.74,135.72,0.05083992]
[1725050726526,0.05409611,135.74,135.73,3.6839]
[1725050727722,0.05409611,135.74,135.72,0.05083992]
[1725050729327,3.6839,135.73,135.72,0.05083992]
[1725050731832,3.73779611,135.74,135.72,0.05083992]
[1725050732032,0.05409611,135.74,135.72,0.05083992]
[1725050732228,0.05409611,135.74,135.72,3.73483992]
[1725050733325,0.05409611,135.74,135.73,14.9639]
[1725050736128,0.05409611,135.74,135.73,18.69309892]
[1725050737540,228.0,135.84,135.73,15.00919892]
[1725050737726,252.93108011,135.87,135.73,11.28]
[1725050737932,252.93108011,135.87,135.77,11.28]
[1725050738132,11.28,135.81,135.75,11.28]
[1725050738437,11.28,135.81,135.74,11.28]
[1725050738737,3.6828,135.78,135.77,0.05265635]
[1725050738930,3.74806686,135.78,135.76,0.05557427]
[1725050739129,3.73077196,135.79,135.76,0.05557427]
[1725050739329,0.04837196,135.79,135.76,11.33557427]
[1725050739830,0.04837196,135.79,135.77,3.6828]
[1725050740039,0.04837196,135.79,135.76,11.33557427]
[1725050740238,0.04837196,135.79,135.77,11.28]
[1725050740739,0.04837196,135.79,135.78,3.6826]
[1725050742943,3.6809,135.85,135.81,3.6815]
[1725050743147,14.92449462,135.87,135.81,3.6815]
[1725050743445,11.28,135.86,135.8,3.6819]
[1725050743638,15.0404997,135.86,135.8,3.6819]
[1725050744256,3.6814,135.83,135.82,0.04883124]
[1725050755050,3.6827,135.78,135.74,90.6816127]
[1725050755354,11.28,135.82,135.75,11.28]
[1725050755544,3.6826,135.78,135.76,3.6829]
[1725050756144,3.73167926,135.78,135.76,3.73299392]
[1725050756453,0.04907926,135.78,135.76,3.73299392]
[1725050757148,0.04907926,135.78,135.77,14.9628]
[1725050758055,3.73167926,135.78,135.77,11.28]
[1725050758246,3.73167926,135.78,135.76,15.01309392]
[1725050760458,0.04907926,135.78,135.76,0.05009392]
[1725050760955,0.04907926,135.78,135.76,3.73299392]
[1725050761854,3.73167926,135.78,135.76,3.73299392]
[1725050766157,3.6828,135.77,135.76,0.05009392]
[1725050773366,3.6839,135.73,135.7,11.28]
[1725050773968,3.6839,135.73,135.71,3.6843]
[1725050774168,3.6839,135.73,135.7,11.28]
[1725050774371,3.7404969,135.73,135.7,11.33217655]
[1725050775170,3.7404969,135.73,135.7,15.01667655]
[1725050775969,3.6842,135.72,135.7,15.01667655]
[1725050776876,3.6842,135.72,135.7,11.33217655]
[1725050781385,3.6845,135.71,135.7,0.05217655]
[1725050788186,3.63655984,135.72,135.7,0.05217655]
[1725050788388,0.0565969,135.73,135.7,11.33217655]
[1725050788893,3.7406969,135.73,135.7,15.01677655]
[1725050789792,3.6843,135.72,135.7,0.05217655]
[1725050790895,7.45529835,135.72,135.7,0.05217655]
[1725050792196,3.6842,135.72,135.7,0.05217655]
[1725050793285,3.7405969,135.73,135.7,3.73677655]
[1725050793490,0.0565969,135.73,135.7,11.33217655]
[1725050793998,0.0565969,135.73,135.71,3.6843]
[1725050795809,3.7404969,135.73,135.7,15.01677655]
[1725050797788,3.7404969,135.73,135.71,3.6844]
[1725050797991,0.0565969,135.73,135.71,3.6844]
[1725050799696,0.0565969,135.73,135.71,3.6845]
[1725050800599,0.0565969,135.73,135.72,14.9642]
[1725050800796,3.65795044,135.79,135.72,11.28]
[1725050800999,11.28,135.8,135.74,11.28]
[1725050801487,11.28,135.8,135.72,11.28]
[1725050801891,3.6833,135.76,135.75,0.05002823]
[1725050810092,14.9633,135.76,135.75,0.05002823]
[1725050810898,11.28,135.76,135.69,3.6848]
[1725050811097,11.28,135.74,135.68,14.9652]
[1725050811541,3.6847,135.71,135.68,14.9652]
[1725050812105,0.05274203,135.71,135.68,15.01446106]
[1725050812306,3.6848,135.7,135.68,15.01446106]
[1725050816010,3.73734203,135.71,135.69,3.685]
[1725050816306,0.05274203,135.71,135.68,11.32926106]
[1725050816908,3.6847,135.7,135.68,15.01436106]
[1725050820211,3.685,135.69,135.68,0.04926106]
[1725050831522,3.6848,135.7,135.68,0.04926106]
[1725050832020,3.6848,135.7,135.68,3.73436106]
[1725050832453,3.73734203,135.71,135.68,3.73436106]
[1725050833821,0.05274203,135.71,135.69,14.965]
[1725050834816,0.05274203,135.71,135.69,11.28]
[1725050835125,0.05274203,135.71,135.7,14.9647]
[1725050839021,0.05274203,135.71,135.7,11.28]
[1725050839926,0.05274203,135.71,135.7,3.6847]
[1725050847924,0.05274203,135.71,135.69,3.6849]
[1725050847925,3.73724203,135.71,135.69,3.6849]
[1725050848132,3.73724203,135.71,135.68,1.43036106]
[1725050848429,0.05274203,135.71,135.68,0.04926106]
[1725050848630,3.67403314,135.7,135.68,0.04926106]
[1725050849524,7.35903314,135.7,135.68,0.04926106]
[1725050851020,3.685,135.69,135.68,0.04926106]
[1725050856134,3.6849,135.7,135.68,3.73446106]
[1725050858833,0.05274203,135.71,135.68,0.04926106]
[1725050859034,3.77635401,135.7,135.68,0.04926106]
[1725050859332,0.05274203,135.71,135.68,0.04926106]
[1725050859532,3.59542214,135.7,135.68,0.04926106]
[1725050860240,0.05274203,135.71,135.68,0.04926106]
[1725050860440,3.685,135.69,135.68,0.04926106]
[1725050881261,0.05274203,135.71,135.69,3.6849]
[1725050881460,0.05274203,135.71,135.68,11.32926106]
[1725050881646,0.05274203,135.71,135.7,3.6847]
[1725050883263,228.0,135.79,135.69,11.28]
[1725050883559,3.66592825,135.79,135.73,11.28]
[1725050883762,3.6827,135.78,135.73,11.28]
[1725050884059,7.45066423,135.78,135.73,11.28]
[1725050884266,3.6827,135.78,135.73,11.28]
[1725050884464,0.04733134,135.77,135.74,3.73350988]
[1725050885459,0.04733134,135.77,135.75,3.6833]
[1725050887559,0.04733134,135.77,135.74,0.05010988]
[1725050887967,0.04733134,135.77,135.75,3.6833]
[1725050888859,0.04733134,135.77,135.75,14.9633]
[1725050894069,0.04733134,135.77,135.76,3.6831]
[1725050908175,0.04733134,135.77,135.76,14.9631]
[1725050909474,1.4112,135.83,135.76,14.9631]
[1725050909674,3.6816,135.82,135.79,11.28]
[1725050910679,3.73399807,135.82,135.79,11.33508801]
[1725050910869,3.73399807,135.82,135.79,15.01728801]
[1725050916082,3.6818,135.81,135.79,15.01728801]
[1725050921292,3.73399807,135.82,135.8,3.6819]
[1725050923786,3.73399807,135.82,135.79,15.01718801]
[1725050930400,3.73399807,135.82,135.8,3.6819]
[1725050930597,3.73399807,135.82,135.8,14.9619]
[1725050933501,3.73399807,135.82,135.8,3.6819]
[1725050934611,0.05239807,135.82,135.79,0.05508801]
[1725050935013,11.33239807,135.82,135.79,0.05508801]
[1725050935415,3.682,135.8,135.79,0.05508801]
[1725050942415,3.682,135.8,135.79,11.33508801]
[1725050942614,3.6819,135.81,135.79,11.33508801]
[1725050943114,3.6819,135.81,135.8,11.28]
[1725050944470,3.73399807,135.82,135.8,11.28]
[1725050945018,0.05239807,135.82,135.81,14.9617]
[1725050956640,0.05239807,135.82,135.81,3.6817]
[1725050956947,0.05239807,135.82,135.81,14.9617]
[1725050957642,0.05239807,135.82,135.8,3.6819]
[1725050957843,3.73389807,135.82,135.8,14.9619]
[1725050959640,0.05239807,135.82,135.8,14.9619]
[1725050963137,3.73409807,135.82,135.8,11.28]
[1725050963537,0.05239807,135.82,135.81,3.6817]
[1725050966040,0.05239807,135.82,135.81,14.9617]
[1725050969638,0.05239807,135.82,135.81,11.28]
[1725050976559,3.73389807,135.82,135.81,11.28]
[1725050977457,3.73389807,135.82,135.8,11.28]
[1725050977870,0.05239807,135.82,135.79,0.05508801]
[1725050978059,3.682,135.8,135.79,0.05508801]
[1725050978656,0.05239807,135.82,135.79,3.76165455]
[1725050978852,0.05239807,135.82,135.81,11.28]
[1725050979454,0.05239807,135.82,135.81,14.9617]
[1725050979756,0.05239807,135.82,135.81,11.28]
[1725050982463,0.05239807,135.82,135.81,14.9617]
[1725050987765,0.05239807,135.82,135.79,0.05508801]
[1725050988964,3.73399807,135.82,135.79,3.73728801]
[1725050990370,0.05239807,135.82,135.81,11.28]
[1725050997873,0.05239807,135.82,135.8,11.28]
[1725050998566,3.73409807,135.82,135.8,11.28]